bitfinex/quotes_SOLUSD_20260308
["timestamp","ask_amount","ask_price","bid_price","bid_amount"]
[1772961263032,0.10601174,83.148,83.107,0.47832443]
[1772961264620,0.10601174,83.148,83.107,0.28432314]
[1772961264833,0.10601174,83.158,83.111,0.47832443]
[1772961265922,0.10601174,83.172,83.111,0.47832443]
[1772961266117,0.10601174,83.169,83.111,0.47832443]
[1772961266322,0.10601174,83.159,83.111,0.47832443]
[1772961266631,0.10601174,83.149,83.111,0.47832443]
[1772961266835,0.10601174,83.148,83.112,12.03195687]
[1772961267352,0.10601174,83.148,83.098,30.08462156]
[1772961267353,0.10601174,83.148,83.107,12.03256252]
[1772961267518,0.10601174,83.139,83.101,12.03341006]
[1772961268221,0.10601174,83.139,83.101,12.51173449]
[1772961268420,0.10601174,83.139,83.102,0.47832443]
[1772961269236,0.10601174,83.139,83.103,12.03325993]
[1772961270714,0.10601174,83.138,83.103,12.03325993]
[1772961270936,0.10601174,83.138,83.104,0.47832443]
[1772961271834,0.10601174,83.138,83.103,12.03325993]
[1772961272135,0.10601174,83.138,83.104,0.47832443]
[1772961273548,0.10601174,83.138,83.106,0.48351537]
[1772961276929,0.10601174,83.138,83.108,0.48351537]
[1772961277443,0.10601174,83.138,83.105,0.48351537]
[1772961279842,0.10601174,83.138,83.104,4.45799531]
[1772961280042,0.10601174,83.119,83.084,0.48351537]
[1772961281631,0.10601174,83.129,83.084,0.48351537]
[1772961281836,0.10601174,83.129,83.086,0.48351537]
[1772961282540,12.02748152,83.143,83.087,0.48351537]
[1772961282735,12.02298795,83.174,83.09,0.48351537]
[1772961282954,30.05589266,83.179,83.095,0.48351537]
[1772961282955,12.02237206,83.179,83.095,0.48351537]
[1772961283123,0.1,83.23,83.095,0.48351537]
[1772961283124,0.10601174,83.211,83.102,0.48351537]
[1772961283326,0.1,83.23,83.119,4.82477569]
[1772961283537,6.27440476,83.253,83.131,0.28432314]
[1772961283738,7.44547395,83.271,83.15,0.5]
[1772961283739,12.01111081,83.257,83.15,0.5]
[1772961283935,12.00912693,83.27,83.165,0.5]
[1772961284135,16.65153952,83.27,83.175,0.5]
[1772961284346,12.00912693,83.27,83.181,0.5]
[1772961284543,12.00912693,83.27,83.175,0.14216157]
[1772961284544,7.44547395,83.271,83.186,0.5]
[1772961284746,7.44547395,83.271,83.191,0.5]
[1772961285055,7.44547395,83.271,83.159,186.38992771]
[1772961285056,12.00907684,83.271,83.213,0.5]
[1772961285255,1e-08,83.271,83.213,0.5]
[1772961285546,42.03194427,83.27,83.213,0.5]
[1772961285753,12.00912693,83.27,83.213,0.5]
[1772961285953,11.5401931,83.27,83.215,0.5]
[1772961286131,11.5401931,83.26,83.215,0.5]
[1772961286333,11.5401931,83.25,83.199,0.5]
[1772961286852,11.5401931,83.25,83.179,3.69383402]
[1772961286853,0.72503636,83.211,83.18,0.5]
[1772961287252,0.72503636,83.211,83.172,4.0771703]
[1772961287444,11.5401931,83.21,83.172,4.0771703]
[1772961287642,11.5401931,83.24,83.178,0.5]
[1772961287837,42.05264991,83.229,83.18,0.5]
[1772961288053,12.01504283,83.229,83.182,0.5]
[1772961288352,12.01504283,83.229,83.183,0.5]
[1772961289134,3.69383402,83.263,83.183,0.5]
[1772961289340,11.5401931,83.25,83.183,0.5]
[1772961289540,30.02819283,83.256,83.183,0.5]
[1772961289541,11.5401931,83.24,83.183,0.5]
[1772961289741,0.14216157,83.255,83.183,0.5]
[1772961289942,12.01359939,83.239,83.186,0.5]
[1772961290658,11.5401931,83.22,83.186,0.5]
[1772961291058,11.5401931,83.23,83.186,0.5]
[1772961291863,42.04759787,83.239,83.186,0.5]
[1772961292157,42.05264991,83.229,83.186,0.5]
[1772961292339,11.5401931,83.22,83.186,0.5]
[1772961292539,42.05264991,83.229,83.186,0.5]
[1772961292739,11.5401931,83.22,83.178,12.52234361]
[1772961293053,11.5401931,83.22,83.17,30.05888565]
[1772961293054,11.5401931,83.22,83.18,0.5]
[1772961293664,11.5401931,83.22,83.172,0.5]
[1772961294041,42.05770315,83.219,83.172,0.5]
[1772961294649,11.5401931,83.21,83.172,0.5]
[1772961295363,12.01793075,83.209,83.172,0.5]
[1772961295561,11.5401931,83.2,83.149,0.5]
[1772961296061,11.5401931,83.18,83.149,0.5]
[1772961297170,11.5401931,83.18,83.131,4.07751565]
[1772961297171,11.5401931,83.18,83.141,0.5]
[1772961297659,42.06730768,83.2,83.133,4.57741756]
[1772961297660,11.5401931,83.17,83.133,4.57741756]
[1772961297842,0.28432314,83.191,83.134,0.5]
[1772961298044,11.5401931,83.17,83.134,0.5]
[1772961298859,0.28432314,83.191,83.133,4.07741756]
[1772961298860,11.5401931,83.16,83.133,4.07741756]
[1772961299262,12.02515662,83.159,83.133,4.07741756]
[1772961300043,30.05736069,83.175,83.134,0.5]
[1772961300248,12.02298795,83.174,83.135,0.5]
[1772961300767,11.5401931,83.17,83.133,4.07741756]
[1772961301150,42.08045783,83.174,83.134,0.5]
[1772961301350,30.05746988,83.174,83.136,0.5]
[1772961302478,166.1,83.216,83.136,0.5]
[1772961302653,11.5401931,83.2,83.136,0.5]
[1772961302850,11.5401931,83.22,83.136,0.5]
[1772961303049,11.5401931,83.23,83.139,0.5]
[1772961303361,42.05264991,83.229,83.144,0.5]
[1772961303555,11.5401931,83.22,83.145,0.5]
[1772961303761,0.28432314,83.228,83.147,0.5]
[1772961304062,11.5401931,83.22,83.147,0.5]
[1772961304262,11.5401931,83.2,83.149,0.5]
[1772961304474,11.5401931,83.21,83.149,0.5]
[1772961305456,11.5401931,83.2,83.152,0.5]
[1772961306369,11.5401931,83.18,83.15,0.5]
[1772961306583,11.568095,83.18,83.147,4.07673101]
[1772961306877,11.568095,83.17,83.134,0.5]
[1772961307055,11.568095,83.16,83.127,12.02964611]
[1772961307250,11.568095,83.16,83.118,0.5]
[1772961307572,11.568095,83.16,83.098,3.69383402]
[1772961307573,11.568095,83.14,83.108,0.5]
[1772961308070,42.09310995,83.149,83.109,0.5]
[1772961308659,11.568095,83.14,83.089,0.5]
[1772961309975,11.568095,83.13,83.091,0.5]
[1772961310579,42.09817293,83.139,83.091,0.5]
[1772961311178,11.568095,83.13,83.091,0.5]
[1772961311478,42.09817293,83.139,83.091,0.5]
[1772961312471,102.22489476,83.15,83.093,0.5]
[1772961312675,11.568095,83.13,83.093,0.5]
[1772961313177,11.568095,83.14,83.093,0.5]
[1772961313472,0.28432314,83.149,83.093,0.5]
[1772961313677,11.568095,83.14,83.093,0.5]
[1772961314860,0.28432314,83.149,83.087,4.07801325]
[1772961314861,11.568095,83.13,83.095,0.5]
[1772961315864,42.09817293,83.139,83.095,0.5]
[1772961316064,11.568095,83.13,83.095,0.5]
[1772961316870,12.02949632,83.129,83.095,0.5]
[1772961317659,12.02949632,83.129,83.097,0.5]
[1772961319688,42.09817293,83.139,83.099,0.5]
[1772961320379,11.568095,83.12,83.088,0.5]
[1772961320580,11.568095,83.12,83.09,0.5]
[1772961320886,11.568095,83.12,83.088,0.5]
[1772961321782,12.03094358,83.119,83.088,0.5]
[1772961322086,42.10830254,83.119,83.087,4.07801325]
[1772961323585,11.568095,83.11,83.087,4.07801325]
[1772961323793,42.10830254,83.119,83.087,4.07801325]
[1772961323994,12.03239119,83.109,83.081,0.5]
[1772961324373,41.64182434,83.13,83.083,0.5]
[1772961324595,12.02833876,83.137,83.083,0.5]
[1772961325098,42.09918567,83.137,83.083,0.5]
[1772961326201,42.09918567,83.137,83.085,0.5]
[1772961327111,42.09918567,83.137,83.087,0.5]
[1772961327807,42.09918567,83.137,83.091,0.5]
[1772961328805,42.09918567,83.137,83.093,0.5]
[1772961330277,3.69383402,83.147,83.095,0.5]
[1772961330592,11.568095,83.14,83.095,0.5]
[1772961332578,12.02804941,83.139,83.097,0.5]
[1772961333096,42.09817293,83.139,83.097,0.5]
[1772961335484,42.09817293,83.139,83.099,0.5]
[1772961336881,12.02804941,83.139,83.099,0.5]
[1772961337086,0.28432314,83.148,83.101,0.5]
[1772961337707,11.568095,83.14,83.101,0.5]
[1772961338080,42.0931948,83.149,83.101,0.5]
[1772961339199,11.568095,83.14,83.103,0.5]
[1772961339594,42.0931948,83.149,83.103,0.5]
[1772961341880,42.0931948,83.149,83.105,0.5]
[1772961344787,0.28432314,83.159,83.107,0.5]
[1772961345103,11.568095,83.15,83.107,0.5]
[1772961346006,42.08754208,83.16,83.107,0.5]
[1772961346185,53.65563708,83.16,83.107,0.5]
[1772961346901,53.65563708,83.16,83.109,0.5]
[1772961347279,42.08754208,83.16,83.109,0.5]
[1772961347784,42.08754208,83.16,83.11,0.5]
[1772961348904,11.568095,83.16,83.113,0.5]
[1772961349110,11.568095,83.14,83.1,0.5]
[1772961349283,3.69383402,83.166,83.1,0.5]
[1772961349484,11.568095,83.16,83.1,0.5]
[1772961350913,42.08804818,83.159,83.103,0.5]
[1772961354397,42.08804818,83.159,83.112,0.5]
[1772961356713,42.08804818,83.159,83.114,0.5]
[1772961359815,42.08804818,83.159,83.116,0.5]
[1772961361617,11.568095,83.15,83.116,0.5]
[1772961361806,12.02660284,83.149,83.116,0.5]
[1772961362008,11.568095,83.14,83.116,0.5]
[1772961362208,11.568095,83.14,83.093,0.5]
[1772961362408,11.568095,83.14,83.043,4.82477569]
[1772961362409,11.568095,83.13,83.094,0.5]
[1772961362714,11.568095,83.12,83.088,0.5]
[1772961363219,42.07641075,83.182,83.088,0.5]
[1772961363410,3.69383402,83.167,83.088,0.5]
[1772961363599,0.14216157,83.166,83.088,0.5]
[1772961364217,0.28432314,83.164,83.091,0.5]
[1772961364513,0.28432314,83.164,83.094,0.5]
[1772961365514,42.08501171,83.165,83.094,0.5]
[1772961366201,30.06072265,83.165,83.095,102.2925567]
[1772961366410,30.06072265,83.165,83.099,0.5]
[1772961366704,30.06072265,83.165,83.1,0.5]
[1772961367832,12.02371075,83.169,83.101,0.5]
[1772961368002,12.02371075,83.169,83.102,0.5]
[1772961368624,12.02371075,83.169,83.101,0.28432314]
[1772961368625,42.07236446,83.19,83.108,0.5]
[1772961368943,42.07236446,83.19,83.113,0.5]
[1772961369228,53.64112132,83.19,83.114,0.5]
[1772961369430,11.56875686,83.18,83.114,0.5]
[1772961369618,53.64112132,83.19,83.114,0.5]
[1772961369809,42.07236446,83.19,83.114,0.5]
[1772961370732,34.67777175,83.19,83.117,0.5]
[1772961371114,30.0516889,83.19,83.117,0.5]
[1772961372334,12.01937523,83.199,83.117,0.5]
[1772961372739,3.69383402,83.206,83.123,0.5]
[1772961373038,4.62608285,83.2,83.129,0.5]
[1772961374040,0.28432314,83.208,83.129,0.5]
[1772961374229,4.62608285,83.2,83.129,0.5]
[1772961374432,0.28432314,83.208,83.129,0.5]
[1772961375463,0.28432314,83.206,83.134,0.5]
[1772961377715,0.28432314,83.204,83.137,0.5]
[1772961378932,42.06579088,83.203,83.138,42.09867929]
[1772961379137,42.06579088,83.203,83.14,0.5]
[1772961379430,4.62608285,83.2,83.14,0.5]
[1772961381245,42.06579088,83.203,83.142,0.78432314]
[1772961381537,12.01879739,83.203,83.146,0.5]
[1772961382326,103.8,83.282,83.149,0.5]
[1772961382537,103.8,83.282,83.147,103.6]
[1772961382538,30.03577183,83.235,83.152,0.5]
[1772961382767,4.62608285,83.23,83.152,0.5]
[1772961383042,4.62608285,83.21,83.152,0.5]
[1772961383243,4.62608285,83.2,83.152,0.5]
[1772961383422,42.06781331,83.199,83.152,0.5]
[1772961383623,4.62608285,83.19,83.143,0.5]
[1772961383948,42.06781331,83.199,83.143,0.5]
[1772961384527,12.01937523,83.199,83.144,0.5]
[1772961385027,30.03995671,83.223,83.147,0.5]
[1772961385221,30.03639649,83.233,83.147,0.5]
[1772961385424,30.03639649,83.233,83.146,0.28432314]
[1772961385425,30.03639649,83.233,83.152,0.5]
[1772961385643,12.01374372,83.238,83.155,0.5]
[1772961385852,12.01374372,83.238,83.157,0.5]
[1772961386067,12.01374372,83.238,83.16,0.5]
[1772961386356,12.01374372,83.238,83.163,0.5]
[1772961386555,12.01374372,83.238,83.166,0.5]
[1772961386726,12.01374372,83.238,83.169,0.5]
[1772961387224,12.01374372,83.238,83.172,0.5]
[1772961387424,0.1,83.24,83.178,0.5]
[1772961388146,0.1,83.24,83.181,0.5]
[1772961388535,12.0115061,83.254,83.182,0.5]
[1772961389553,0.1,83.26,83.188,0.5]
[1772961389849,4.72608285,83.26,83.188,0.5]
[1772961390347,4.62608285,83.25,83.188,0.5]
[1772961390850,0.28432314,83.259,83.188,0.5]
[1772961391152,4.72608285,83.26,83.188,0.5]
[1772961391450,0.1,83.26,83.195,0.5]
[1772961391634,0.1,83.26,83.196,0.5]
[1772961391837,4.72608285,83.26,83.196,0.5]
[1772961392437,0.1,83.26,83.196,0.5]
[1772961392836,4.72608285,83.26,83.196,0.5]
[1772961393251,0.1,83.26,83.196,0.5]
[1772961393934,0.1,83.26,83.199,0.5]
[1772961394544,0.1,83.26,83.198,0.28432314]
[1772961394545,0.1,83.26,83.202,0.5]
[1772961394845,0.256034,83.29,83.212,0.78432314]
[1772961395051,46.90410452,83.29,83.218,0.5]
[1772961395355,4.62608285,83.28,83.218,0.5]
[1772961395932,46.90410452,83.29,83.221,0.5]
[1772961396750,4.62608285,83.28,83.221,0.5]
[1772961397651,4.62608285,83.27,83.221,0.5]
[1772961397978,12.01071355,83.259,83.216,0.5]
[1772961398149,42.03749744,83.259,83.216,0.5]
[1772961398665,4.62608285,83.25,83.216,0.5]
[1772961398854,4.62608285,83.25,83.209,12.01781139]
[1772961399155,4.62608285,83.25,83.208,0.5]
[1772961399462,42.03749744,83.259,83.146,0.5]
[1772961399463,4.62608285,83.23,83.146,0.5]
[1772961399767,4.62608285,83.23,83.159,3.69383402]
[1772961399935,3.69383402,83.247,83.165,0.5]
[1772961399936,4.62608285,83.21,83.165,0.5]
[1772961400330,4.62608285,83.22,83.165,0.5]
[1772961400535,11.5547588,83.23,83.165,0.5]
[1772961400735,11.5547588,83.22,83.165,0.5]
[1772961401563,12.01648661,83.219,83.168,0.5]
[1772961402055,12.01504283,83.229,83.171,0.5]
[1772961403543,30.03492417,83.237,83.172,42.08146972]
[1772961403749,30.03492417,83.237,83.177,0.5]
[1772961405053,12.01359939,83.239,83.177,0.5]
[1772961406240,42.04289982,83.249,83.179,0.28432314]
[1772961406437,11.5547588,83.24,83.18,0.5]
[1772961406643,11.5547588,83.23,83.18,0.5]
[1772961406842,11.5547588,83.19,83.152,4.07801578]
[1772961407056,11.5547588,83.19,83.152,16.10407853]
[1772961407258,11.5547588,83.19,83.152,12.02606275]
[1772961407452,0.28432314,83.211,83.153,0.5]
[1772961407453,0.14216157,83.211,83.153,0.5]
[1772961407661,11.5547588,83.19,83.153,0.5]
[1772961408354,11.5547588,83.19,83.155,0.5]
[1772961408548,12.01937523,83.199,83.155,0.5]
[1772961409066,12.01937523,83.199,83.161,0.5]
[1772961409358,30.04132989,83.219,83.161,0.5]
[1772961409742,11.5547588,83.21,83.161,0.5]
[1772961410446,53.60690345,83.23,83.164,0.5]
[1772961411162,11.5547588,83.22,83.164,0.5]
[1772961412462,11.5547588,83.23,83.166,0.28432314]
[1772961412660,11.5547588,83.23,83.167,0.5]
[1772961412860,11.5547588,83.22,83.167,0.5]
[1772961414144,53.60185153,83.24,83.167,0.5]
[1772961414548,53.60185153,83.24,83.173,0.5]
[1772961414748,53.60185153,83.24,83.173,0.64216157]
[1772961414958,53.60185153,83.24,83.174,0.5]
[1772961417766,42.04709273,83.24,83.177,0.5]
[1772961420073,11.5547588,83.25,83.18,0.5]
[1772961420971,11.5547588,83.24,83.18,0.5]
[1772961422169,12.01359939,83.239,83.183,0.5]
[1772961422567,42.04759787,83.239,83.183,0.5]
[1772961424571,4.62087509,83.24,83.186,0.5]
[1772961424768,0.28432314,83.256,83.186,0.5]
[1772961424976,4.62087509,83.24,83.186,0.5]
[1772961426279,0.28432314,83.256,83.186,0.5]
[1772961426460,12.01129061,83.255,83.189,0.5]
[1772961426660,12.01044381,83.261,83.192,0.5]
[1772961427066,12.01044381,83.261,83.194,0.5]
[1772961427262,12.00797329,83.278,83.197,0.5]
[1772961427463,12.00638739,83.289,83.197,0.5]
[1772961427664,42.02235588,83.289,83.2,0.5]
[1772961428084,42.02235588,83.289,83.203,0.5]
[1772961428869,42.02235588,83.289,83.208,0.5]
[1772961429068,42.02235588,83.289,83.209,0.5]
[1772961429381,1e-08,83.29,83.219,0.5]
[1772961429582,11.53635517,83.33,83.231,0.5]
[1772961429773,12.00350502,83.309,83.231,0.5]
[1772961430273,4.82477569,83.341,83.231,0.5]
[1772961430274,12.00260994,83.316,83.231,0.5]
[1772961430476,12.00319044,83.312,83.231,0.5]
[1772961430683,12.00319044,83.312,83.229,1.20150428]
[1772961430684,29.99859857,83.338,83.241,0.5]
[1772961430985,29.99859857,83.338,83.24,4.82477569]
[1772961430986,0.1,83.36,83.253,0.5]
[1772961431187,0.1,83.36,83.262,5.60909883]
[1772961431368,7.47732442,83.426,83.262,5.60909883]
[1772961431369,11.99371529,83.377,83.272,0.5]
[1772961431572,11.99371529,83.377,83.294,0.5]
[1772961431878,11.99371529,83.377,83.273,12.69207331]
[1772961431879,29.97675951,83.398,83.304,0.5]
[1772961432059,11.99371529,83.377,83.304,0.5]
[1772961432265,11.52701515,83.34,83.293,0.5]
[1772961432472,4.96693726,83.361,83.256,0.5]
[1772961432668,101.94657998,83.377,83.256,0.5]
[1772961432669,11.52701515,83.35,83.256,0.5]
[1772961432892,11.52701515,83.35,83.261,0.5]
[1772961433188,11.52701515,83.35,83.257,102.09351764]
[1772961433189,0.14216157,83.346,83.262,0.5]
[1772961433375,11.52701515,83.32,83.262,0.5]
[1772961433571,5.10909883,83.347,83.262,0.5]
[1772961433773,11.52701515,83.33,83.262,0.5]
[1772961434564,11.52701515,83.32,83.262,0.5]
[1772961434890,11.52701515,83.32,83.264,0.5]
[1772961434891,42.00722523,83.319,83.264,0.5]
[1772961436892,42.00168005,83.33,83.265,42.03446825]
[1772961437078,12.00048001,83.33,83.266,0.5]
[1772961437263,12.00048001,83.33,83.267,0.5]
[1772961437688,11.52701515,83.36,83.27,0.5]
[1772961437891,11.99371529,83.377,83.276,0.5]
[1772961438069,11.99371529,83.377,83.279,0.5]
[1772961438266,11.99371529,83.377,83.281,0.5]
[1772961438692,11.99371529,83.377,83.283,0.5]
[1772961439077,11.99371529,83.377,83.288,0.5]
[1772961439264,11.99371529,83.377,83.292,0.5]
[1772961439467,11.9930456,83.382,83.293,0.5]
[1772961439686,11.9930456,83.382,83.296,0.5]
[1772961439995,11.99371529,83.377,83.299,0.5]
[1772961440204,11.99371529,83.377,83.302,0.5]
[1772961440376,11.52701515,83.36,83.302,0.5]
[1772961441172,11.52701515,83.34,83.299,4.07315584]
[1772961441381,11.52701515,83.37,83.299,4.07315584]
[1772961441382,11.52701515,83.33,83.299,4.07315584]
[1772961441794,11.52701515,83.35,83.301,0.5]
[1772961442095,106.77135567,83.377,83.301,0.5]
[1772961442096,11.52701515,83.36,83.301,0.5]
[1772961442290,11.52701515,83.35,83.301,0.5]
[1772961443098,11.52701515,83.34,83.299,4.07315584]
[1772961443394,41.99714418,83.339,83.299,4.07315584]
[1772961444171,41.99714418,83.339,83.278,30.01978174]
[1772961444172,11.52701515,83.33,83.282,0.5]
[1772961444395,11.52701515,83.32,83.282,0.5]
[1772961444592,11.52701515,83.31,83.261,0.5]
[1772961444791,11.52701515,83.32,83.261,0.5]
[1772961445094,11.52701515,83.31,83.261,0.5]
[1772961445276,12.00350502,83.309,83.262,12.0102808]
[1772961445470,12.00283398,83.314,83.264,0.5]
[1772961446501,11.52701515,83.31,83.264,0.5]
[1772961446676,11.52701515,83.31,83.257,12.01093489]
[1772961446996,11.52701515,83.31,83.258,0.5]
[1772961447174,11.52701515,83.3,83.258,0.5]
[1772961447379,11.52701515,83.31,83.258,0.5]
[1772961447694,11.52701515,83.3,83.258,0.5]
[1772961448376,11.52701515,83.28,83.233,12.51446541]
[1772961449283,0.28432314,83.308,83.232,4.07428708]
[1772961449284,11.52701515,83.27,83.232,4.07428708]
[1772961449475,42.03244904,83.269,83.232,4.07428708]
[1772961450099,11.52701515,83.26,83.232,4.07428708]
[1772961450392,12.00927115,83.269,83.233,0.5]
[1772961450989,12.00927115,83.269,83.233,12.51446541]
[1772961451296,12.00927115,83.269,83.234,0.5]
[1772961451685,12.0078291,83.279,83.235,12.01417672]
[1772961451890,12.0078291,83.279,83.235,12.51417672]
[1772961452682,42.02740186,83.279,83.236,0.5]
[1772961453697,42.02740186,83.279,83.238,0.5]
[1772961456184,11.52701515,83.27,83.232,4.07428708]
[1772961456386,11.52701515,83.27,83.232,16.08886309]
[1772961457600,11.52701515,83.27,83.232,4.07428708]
[1772961458103,42.03244904,83.269,83.232,4.07428708]
[1772961458401,11.52701515,83.26,83.232,4.07428708]
[1772961458697,11.52701515,83.26,83.213,12.01728163]
[1772961458890,11.52701515,83.26,83.21,0.5]
[1772961459096,11.52701515,83.26,83.212,0.5]
[1772961459800,11.52701515,83.24,83.2,12.01909132]
[1772961460100,11.52701515,83.24,83.172,4.07545106]
[1772961460101,102.07880482,83.269,83.172,4.07545106]
[1772961460102,11.52701515,83.21,83.172,4.07545106]
[1772961460296,42.06275763,83.209,83.172,4.07545106]
[1772961460602,11.52701515,83.24,83.173,0.5]
[1772961460801,0.28432314,83.238,83.173,0.5]
[1772961461004,11.52701515,83.22,83.173,0.5]
[1772961462004,11.52701515,83.24,83.174,0.5]
[1772961462391,11.52701515,83.25,83.177,0.5]
[1772961464306,11.52701515,83.24,83.179,0.5]
[1772961465406,42.04254705,83.249,83.18,0.5]
[1772961466606,42.04254705,83.249,83.183,0.5]
[1772961467197,12.0121563,83.249,83.183,0.5]
[1772961468186,42.04254705,83.249,83.183,0.5]
[1772961468707,11.52701515,83.25,83.186,0.5]
[1772961470209,42.03749744,83.259,83.186,0.5]
[1772961470410,11.52701515,83.25,83.186,0.5]
[1772961470799,42.04254705,83.249,83.189,0.5]
[1772961471011,42.04254705,83.249,83.187,12.02110906]
[1772961471012,11.52701515,83.23,83.187,12.02110906]
[1772961471195,102.10332856,83.249,83.18,0.5]
[1772961471196,0.28432314,83.248,83.181,12.02197617]
[1772961471397,11.52701515,83.23,83.182,0.5]
[1772961472011,42.04254705,83.249,83.182,0.5]
[1772961472316,42.04254705,83.249,83.186,0.5]
[1772961473217,0.28432314,83.258,83.189,0.5]
[1772961473909,11.52701515,83.25,83.189,0.5]
[1772961475389,42.04254705,83.249,83.19,42.07236446]
[1772961475591,42.04254705,83.249,83.192,0.5]
[1772961476015,11.52701515,83.24,83.192,0.5]
[1772961477101,42.04759787,83.239,83.193,12.02024208]
[1772961477502,11.52701515,83.23,83.178,0.5]
[1772961479817,42.05264991,83.229,83.18,0.5]
[1772961480814,12.01504283,83.229,83.18,0.5]
[1772961481023,12.01504283,83.229,83.181,0.5]
[1772961482004,30.03696982,83.231,83.183,0.5]
[1772961482912,12.01359939,83.239,83.184,0.5]
[1772961483507,42.04759787,83.239,83.184,0.5]
[1772961484926,11.52701515,83.24,83.187,0.5]
[1772961485425,3.69383402,83.257,83.187,0.5]
[1772961485725,11.52701515,83.25,83.187,0.5]
[1772961486410,11.52701515,83.24,83.187,0.5]
[1772961487909,12.01114634,83.256,83.189,0.78432314]
[1772961488117,11.52701515,83.25,83.19,0.5]
[1772961491925,11.52701515,83.25,83.181,3.69383402]
[1772961491926,42.04254705,83.249,83.193,0.5]
[1772961494726,30.03039075,83.249,83.195,0.5]
[1772961495564,11.54998465,83.24,83.195,0.5]
[1772961496038,0.28432314,83.248,83.195,0.5]
[1772961497440,0.28432314,83.246,83.197,0.5]
[1772961497612,42.04355712,83.247,83.197,0.5]
[1772961498534,12.01244489,83.247,83.2,0.5]
[1772961498712,12.01244489,83.247,83.2,0.64216157]
[1772961498915,12.01244489,83.247,83.201,0.5]
[1772961499654,12.01244489,83.247,83.2,0.28432314]
[1772961499655,30.02975351,83.251,83.206,0.5]
[1772961499944,11.54998465,83.25,83.206,0.5]
[1772961501534,30.02975351,83.251,83.206,0.5]
[1772961502634,11.54998465,83.25,83.208,0.5]
[1772961504948,42.04254705,83.249,83.209,12.01793075]
[1772961505236,42.04254705,83.249,83.209,12.51793075]
[1772961505630,12.0121563,83.249,83.21,0.5]
[1772961506939,42.03785444,83.259,83.212,0.5]
[1772961507324,0.28432314,83.258,83.212,0.5]
[1772961509226,11.54998465,83.24,83.19,0.5]
[1772961510727,0.28432314,83.249,83.19,0.5]
[1772961511436,0.28432314,83.255,83.192,0.5]
[1772961511643,30.02786585,83.256,83.193,0.5]
[1772961512543,30.02786585,83.256,83.192,0.28432314]
[1772961512544,42.03901219,83.256,83.196,0.5]
[1772961515039,42.03901219,83.256,83.199,0.5]
[1772961516322,42.03901219,83.256,83.201,0.5]
[1772961516533,42.03901219,83.256,83.202,0.5]
[1772961518749,12.01114634,83.256,83.204,0.5]
[1772961518940,12.01114634,83.256,83.208,0.5]
[1772961519145,12.00927115,83.269,83.208,0.5]
[1772961519656,19.44436267,83.274,83.208,0.5]
[1772961519843,19.44436267,83.274,83.214,0.5]
[1772961520350,19.44436267,83.274,83.216,0.5]
[1772961521433,19.44436267,83.274,83.214,3.69383402]
[1772961521434,19.44436267,83.274,83.219,0.5]
[1772961521949,49.46573788,83.274,83.219,0.5]
[1772961523934,102.07512728,83.272,83.221,0.5]
[1772961524134,102.07512728,83.272,83.206,30.04561051]
[1772961524135,11.53808026,83.26,83.216,0.5]
[1772961526758,11.53808026,83.26,83.206,30.04561051]
[1772961526759,42.03749744,83.259,83.218,0.5]
[1772961529260,42.03749744,83.259,83.194,0.28432314]
[1772961529261,42.03749744,83.259,83.22,0.5]
[1772961531245,42.03749744,83.259,83.222,0.5]
[1772961532464,42.31677218,83.269,83.224,0.5]
[1772961532841,11.53808026,83.26,83.224,0.5]
[1772961536471,42.03749744,83.259,83.201,0.5]
[1772961536645,42.03749744,83.259,83.202,0.5]
[1772961538567,42.03749744,83.259,83.204,0.5]
[1772961539067,11.53808026,83.25,83.204,0.5]
[1772961540584,4.61946341,83.25,83.206,0.5]
[1772961542967,42.04254705,83.249,83.208,0.5]